fUSD/lending_fUSD_20241223
["ID","MTS","AMOUNT","RATE_DAILY","PERIOD"]
[346382430,1734929443566,-1310.1,0.00019178,2]
[346382431,1734929443575,-645.85,0.00019178,2]
[346382432,1734929443583,-500.0,0.00019178,2]
[346382433,1734929443592,-500.0,0.00019178,2]
[346382434,1734929443601,-500.0,0.00019178,2]
[346382435,1734929443611,-500.0,0.00019178,2]
[346382436,1734929443620,-2013.3,0.00019178,2]
[346382437,1734929443628,-500.0,0.00019178,2]
[346382438,1734929443638,-646.48,0.00019178,2]
[346382439,1734929443647,-500.0,0.00019178,2]
[346382440,1734929443656,-863.09,0.00019178,2]
[346382441,1734929443665,-505.0845155,0.00019178,2]
[346382442,1734929443674,-504.61052577,0.00019178,2]
[346382443,1734929443683,-679.34,0.00019178,2]
[346382444,1734929443693,-852.6,0.00019178,2]
[346382445,1734929443702,-960.25,0.00019178,2]
[346382446,1734929443711,-1675.68,0.00019178,2]
[346382447,1734929443720,-365.19,0.00019178,2]
[346382448,1734929443729,-365.19,0.00019178,2]
[346382449,1734929443739,-364.83,0.00019178,2]
[346382450,1734929443748,-150.0,0.000192,4]
[346382451,1734929443757,-500.0,0.00019205,2]
[346382452,1734929443767,-570.77747343,0.00019211,2]
[346382453,1734929443776,-209.0,0.0001926,2]
[346382454,1734929443785,-205.0,0.0001926,2]
[346382455,1734929443794,-209.0,0.0001926,2]
[346382456,1734929443803,-570.77747343,0.00019289,2]
[346382457,1734929443814,-4221.51,0.000193,2]
[346382458,1734929443823,-1000.0,0.000193,2]
[346382459,1734929443832,-150.0,0.00019333,4]
[346382460,1734929443841,-185.91816351,0.00019352,2]
[346382461,1734929443850,-177.08806774,0.00019352,2]
[346382462,1734929443859,-500.0,0.00019361,2]
[346382463,1734929443868,-500.0,0.00019361,2]
[346382464,1734929443877,-1179.31,0.00019361,2]
[346382465,1734929443887,-642.16,0.00019361,2]
[346382466,1734929443895,-500.0,0.00019361,2]
[346382467,1734929443905,-513.41,0.00019361,2]
[346382468,1734929443914,-500.0,0.00019361,2]
[346382469,1734929443924,-1315.35,0.00019361,2]
[346382470,1734929443933,-799.93,0.00019361,2]
[346382471,1734929443942,-1282.06,0.00019361,2]
[346382472,1734929443951,-500.0,0.00019361,2]
[346382473,1734929443960,-535.91,0.00019361,2]
[346382474,1734929443970,-500.0,0.00019361,2]
[346382475,1734929443981,-500.0,0.00019361,2]
[346382476,1734929443991,-661.93,0.00019361,2]
[346382477,1734929444000,-500.0,0.00019361,2]
[346382478,1734929444010,-740.62,0.00019361,2]
[346382479,1734929444019,-909.45,0.00019361,2]
[346382480,1734929444027,-500.0,0.00019361,2]
[346382481,1734929444036,-500.0,0.00019361,2]
[346382482,1734929444047,-500.0,0.00019361,2]
[346382483,1734929444056,-527.8686706,0.00019361,2]
[346382484,1734929444065,-500.0,0.00019361,2]
[346382485,1734929444075,-570.77747343,0.00019367,2]
[346382486,1734929444084,-3000.0,0.000194,2]
[346382487,1734929444093,-500.0,0.00019442,2]
[346382488,1734929444102,-500.0,0.00019443,2]
[346382489,1734929444111,-500.0,0.00019443,2]
[346382490,1734929444120,-200.0,0.00019443,2]
[346382491,1734929444129,-570.77747343,0.00019444,2]
[346382492,1734929444138,-250.0,0.00019445,2]
[346382493,1734929444147,-201.0,0.00019445,2]
[346382494,1734929444156,-154.0,0.00019445,2]
[346382495,1734929444165,-154.0,0.00019445,2]
[346382496,1734929444174,-154.0,0.00019445,2]
[346382497,1734929444182,-154.0,0.00019445,2]
[346382498,1734929444191,-154.0,0.00019445,2]
[346382499,1734929444200,-154.0,0.00019445,2]
[346382500,1734929444209,-154.0,0.00019445,2]
[346382501,1734929444218,-154.0,0.00019445,2]
[346382502,1734929444227,-154.0,0.00019445,2]
[346382503,1734929444235,-154.0,0.00019445,2]
[346382504,1734929444244,-154.0,0.00019445,2]
[346382505,1734929444254,-154.0,0.00019445,2]
[346382506,1734929444263,-1962.940736,0.00019452,2]
[346382507,1734929444272,-500.0,0.00019452,2]
[346382508,1734929444282,-2141.220525,0.00019452,2]
[346382509,1734929444291,-261.53320929,0.00019452,2]
[346382510,1734929444300,-301.86064812,0.00019452,2]
[346382511,1734929444312,-500.0,0.00019452,2]
[346382512,1734929444321,-516.14,0.00019452,2]
[346382513,1734929444330,-500.0,0.00019452,2]
[346382514,1734929444339,-500.0,0.00019452,2]
[346382515,1734929444348,-500.0,0.00019452,2]
[346382516,1734929444358,-500.0,0.00019452,2]
[346382517,1734929444367,-500.0,0.00019452,2]
[346382518,1734929444376,-500.0,0.00019452,2]
[346382519,1734929444386,-500.0,0.00019452,2]
[346382520,1734929444395,-267.88537435,0.00019452,2]
[346382521,1734929444404,-500.0,0.00019452,2]
[346382522,1734929444415,-500.0,0.00019452,2]
[346382523,1734929444430,-500.0,0.00019452,2]
[346382524,1734929444444,-500.0,0.00019452,2]
[346382525,1734929444454,-500.0,0.00019452,2]
[346382526,1734929444463,-500.0,0.00019452,2]
[346382527,1734929444473,-500.0,0.00019452,2]
[346382528,1734929444483,-500.0,0.00019452,2]
[346382529,1734929444492,-500.0,0.00019452,2]
[346382530,1734929444502,-500.0,0.00019452,2]
[346382531,1734929444512,-223.65829156,0.00019452,2]
[346382532,1734929444521,-500.0,0.00019452,2]
[346382533,1734929444531,-500.0,0.00019452,2]
[346382534,1734929444541,-1575.02,0.00019452,2]
[346382535,1734929444552,-500.0,0.00019452,2]
[346382536,1734929444565,-500.0,0.00019452,2]
[346382537,1734929444575,-500.0,0.00019452,2]
[346382538,1734929444585,-500.0,0.00019452,2]
[346382539,1734929444595,-500.0,0.00019452,2]
[346382540,1734929444605,-2000.0,0.00019452,15]
[346382541,1734929444615,-500.0,0.00019452,2]
[346382542,1734929444624,-496.61111551,0.00019452,2]
[346382543,1734929444634,-500.0,0.00019452,2]
[346382544,1734929444644,-511.60526384,0.00019452,2]
[346382545,1734929444653,-316.79801518,0.00019452,2]
[346382546,1734929444663,-500.0,0.00019452,2]
[346382547,1734929444673,-500.0,0.00019452,2]
[346382548,1734929444682,-507.39217552,0.00019452,2]
[346382549,1734929444692,-500.0,0.00019452,2]
[346382550,1734929444701,-500.0,0.00019452,2]
[346382551,1734929444710,-500.0,0.00019452,2]
[346382552,1734929444720,-500.0,0.00019452,2]
[346382553,1734929444730,-500.0,0.00019452,2]
[346382554,1734929444740,-500.0,0.00019452,2]
[346382555,1734929444749,-500.0,0.00019452,2]
[346382556,1734929444759,-595.36,0.00019452,2]
[346382557,1734929444769,-500.0,0.00019452,2]
[346382558,1734929444779,-500.0,0.00019452,2]
[346382559,1734929444788,-500.0,0.00019452,2]
[346382560,1734929444798,-500.0,0.00019452,2]
[346382561,1734929444809,-920.19,0.00019452,2]
[346382562,1734929444819,-500.0,0.00019452,2]
[346382563,1734929444828,-891.63,0.00019452,2]
[346382564,1734929444837,-500.0,0.00019452,2]
[346382565,1734929444847,-500.0,0.00019452,2]
[346382566,1734929444856,-946.59,0.00019452,2]
[346382567,1734929444867,-500.0,0.00019452,2]
[346382568,1734929444876,-557.13,0.00019452,2]
[346382569,1734929444886,-1046.07,0.00019452,2]
[346382570,1734929444895,-500.0,0.00019452,2]
[346382571,1734929444905,-500.0,0.00019452,2]
[346382572,1734929444914,-500.0,0.00019452,2]
[346382573,1734929444925,-500.0,0.00019452,2]
[346382574,1734929444935,-500.0,0.00019452,2]
[346382575,1734929444945,-500.0,0.00019452,2]
[346382576,1734929444955,-500.0,0.00019452,2]
[346382577,1734929444964,-922.13,0.00019452,2]
[346382578,1734929444976,-500.0,0.00019452,2]
[346382579,1734929444986,-471.006464,0.00019452,2]
[346382580,1734929444995,-500.0,0.00019452,2]
[346382581,1734929445005,-500.0,0.00019452,2]
[346382582,1734929445015,-500.0,0.00019452,2]
[346382583,1734929445025,-668.52,0.00019452,2]
[346382584,1734929445035,-500.0,0.00019452,2]
[346382585,1734929445045,-502.71613647,0.00019452,2]
[346382586,1734929445057,-893.39,0.00019452,2]
[346382587,1734929445068,-500.49,0.00019452,2]
[346382588,1734929445077,-500.0,0.00019452,2]
[346382589,1734929445087,-500.0,0.00019452,2]
[346382590,1734929445097,-500.0,0.00019452,2]
[346382591,1734929445107,-500.0,0.00019452,2]
[346382592,1734929445117,-500.0,0.00019452,2]
[346382593,1734929445126,-500.0,0.00019452,2]
[346382594,1734929445136,-500.0,0.00019452,2]
[346382595,1734929445146,-500.0,0.00019452,2]
[346382596,1734929445156,-500.0,0.00019452,2]
[346382597,1734929445166,-500.0,0.00019452,2]
[346382598,1734929445176,-500.0,0.00019452,2]
[346382599,1734929445185,-500.0,0.00019452,2]
[346382600,1734929445195,-529.21,0.00019452,2]
[346382601,1734929445205,-500.0,0.00019452,2]
[346382602,1734929445214,-500.0,0.00019452,2]
[346382603,1734929445224,-500.0,0.00019452,2]
[346382604,1734929445234,-500.0,0.00019452,2]
[346382605,1734929445244,-1053.24,0.00019452,2]
[346382606,1734929445253,-500.0,0.00019452,2]
[346382607,1734929445263,-659.76,0.00019452,2]
[346382608,1734929445273,-500.0,0.00019452,2]
[346382609,1734929445283,-749.16,0.00019452,2]
[346382610,1734929445292,-383.85710765,0.00019452,2]
[346382611,1734929445302,-500.0,0.00019452,2]
[346382612,1734929445315,-851.83,0.00019452,2]
[346382613,1734929445324,-500.0,0.00019452,2]
[346382614,1734929445335,-500.0,0.00019452,2]
[346382615,1734929445345,-500.0,0.00019452,2]
[346382617,1734929445354,-824.03,0.00019452,2]
[346382619,1734929445364,-500.0,0.00019452,2]
[346382621,1734929445373,-500.0,0.00019452,2]
[346382623,1734929445383,-500.0,0.00019452,2]
[346382625,1734929445395,-903.48,0.00019452,2]
[346382626,1734929445405,-500.0,0.00019452,2]
[346382628,1734929445415,-500.0,0.00019452,2]
[346382630,1734929445425,-500.0,0.00019452,2]
[346382632,1734929445434,-500.0,0.00019452,2]
[346382634,1734929445444,-500.0,0.00019452,2]
[346382635,1734929445454,-500.0,0.00019452,2]
[346382637,1734929445464,-500.0,0.00019452,2]
[346382639,1734929445474,-500.0,0.00019452,2]
[346382640,1734929445484,-500.0,0.00019452,2]
[346382641,1734929445493,-573.73,0.00019452,2]
[346382642,1734929445504,-500.0,0.00019452,2]
[346382643,1734929445514,-500.0,0.00019452,2]
[346382644,1734929445524,-500.0,0.00019452,2]
[346382645,1734929445535,-500.0,0.00019452,2]
[346382646,1734929445545,-500.46311983,0.00019452,2]
[346382647,1734929445555,-500.0,0.00019452,2]
[346382648,1734929445570,-500.0,0.00019452,2]
[346382649,1734929445580,-562.42,0.00019452,2]
[346382650,1734929445590,-718.8,0.00019452,2]
[346382651,1734929445601,-500.0,0.00019452,2]
[346382652,1734929445612,-500.0,0.00019452,2]
[346382653,1734929445623,-500.0,0.00019452,2]
[346382654,1734929445633,-500.0,0.00019452,2]
[346382655,1734929445644,-500.0,0.00019452,2]
[346382656,1734929445655,-500.0,0.00019452,2]
[346382657,1734929445667,-500.0,0.00019452,2]
[346382658,1734929445677,-500.0,0.00019452,2]
[346382659,1734929445688,-515.78,0.00019452,2]
[346382660,1734929445699,-500.0,0.00019452,2]
[346382661,1734929445707,-500.0,0.00019452,2]
[346382662,1734929445717,-500.0,0.00019452,2]
[346382663,1734929445728,-500.0,0.00019452,2]
[346382664,1734929445739,-500.0,0.00019452,2]
[346382665,1734929445749,-1197.99,0.00019452,2]
[346382666,1734929445759,-500.0,0.00019452,2]
[346382667,1734929445769,-1139.45,0.00019452,2]
[346382668,1734929445780,-500.0,0.00019452,2]
[346382669,1734929445791,-500.0,0.00019452,2]
[346382670,1734929445801,-500.0,0.00019452,2]
[346382671,1734929445816,-500.0,0.00019452,2]
[346382672,1734929445826,-1130.05,0.00019452,2]
[346382673,1734929445836,-500.0,0.00019452,2]
[346382674,1734929445846,-500.0,0.00019452,2]
[346382675,1734929445856,-500.0,0.00019452,2]
[346382676,1734929445865,-500.0,0.00019452,2]
[346382677,1734929445875,-500.0,0.00019452,2]
[346382678,1734929445885,-500.0,0.00019452,2]
[346382679,1734929445895,-500.0,0.00019452,2]
[346382680,1734929445905,-500.0,0.00019452,2]
[346382681,1734929445914,-963.53,0.00019452,2]
[346382682,1734929445924,-500.0,0.00019452,2]
[346382683,1734929445934,-764.61,0.00019452,2]
[346382684,1734929445943,-500.0,0.00019452,2]
[346382686,1734929445953,-500.0,0.00019452,2]
[346382687,1734929445962,-500.0,0.00019452,2]
[346382688,1734929445974,-500.0,0.00019452,2]
[346382689,1734929445984,-500.0,0.00019452,2]
[346382690,1734929445994,-500.0,0.00019452,2]
[346382691,1734929446004,-500.0,0.00019452,2]
[346382692,1734929446013,-783.61,0.00019452,2]
[346382693,1734929446022,-500.0,0.00019452,2]
[346382694,1734929446032,-500.0,0.00019452,2]
[346382695,1734929446042,-500.0,0.00019452,2]
[346382696,1734929446052,-642.85,0.00019452,2]
[346382697,1734929446065,-1157.69,0.00019452,2]
[346382698,1734929446075,-500.0,0.00019452,2]
[346382699,1734929446084,-500.0,0.00019452,2]
[346382700,1734929446094,-500.0,0.00019452,2]
[346382701,1734929446103,-500.0,0.00019452,2]
[346382702,1734929446112,-500.0,0.00019452,2]
[346382703,1734929446122,-500.0,0.00019452,2]
[346382704,1734929446131,-585.46,0.00019452,2]
[346382706,1734929446140,-815.9,0.00019452,2]
[346382708,1734929446149,-500.0,0.00019452,2]
[346382710,1734929446159,-1203.71,0.00019452,2]
[346382711,1734929446168,-500.0,0.00019452,2]
[346382712,1734929446177,-500.0,0.00019452,2]
[346382713,1734929446187,-500.0,0.00019452,2]
[346382714,1734929446196,-500.0,0.00019452,2]
[346382715,1734929446205,-500.0,0.00019452,2]
[346382716,1734929446216,-500.0,0.00019452,2]
[346382717,1734929446225,-500.0,0.00019452,2]
[346382718,1734929446234,-1038.73,0.00019452,2]
[346382719,1734929446243,-500.0,0.00019452,2]
[346382720,1734929446253,-500.0,0.00019452,2]
[346382721,1734929446263,-500.0,0.00019452,2]
[346382722,1734929446272,-500.0,0.00019452,2]
[346382723,1734929446282,-500.0,0.00019452,2]
[346382724,1734929446291,-1727.26,0.00019452,2]
[346382725,1734929446300,-500.0,0.00019452,2]
[346382726,1734929446312,-179.64962664,0.00019452,2]
[346382727,1734929446321,-500.0,0.00019452,2]
[346382728,1734929446330,-500.0,0.00019452,2]
[346382729,1734929446340,-500.0,0.00019452,2]
[346382730,1734929446349,-506.81398319,0.00019452,2]
[346382731,1734929446359,-508.27266278,0.00019452,2]
[346382732,1734929446368,-500.0,0.00019452,2]
[346382733,1734929446378,-500.0,0.00019452,2]
[346382734,1734929446387,-505.66520848,0.00019452,2]
[346382735,1734929446397,-500.0,0.00019452,2]
[346382736,1734929446406,-500.0,0.00019452,2]
[346382737,1734929446415,-1139.97,0.00019452,2]
[346382738,1734929446425,-500.0,0.00019452,2]
[346382739,1734929446435,-167.57517725,0.00019452,2]
[346382740,1734929446444,-500.0,0.00019452,2]
[346382741,1734929446453,-500.0,0.00019452,2]
[346382742,1734929446463,-500.0,0.00019452,2]
[346382743,1734929446473,-500.0,0.00019452,2]
[346382744,1734929446482,-1060.45,0.00019452,2]
[346382745,1734929446659,-500.0,0.00019452,2]
[346382746,1734929446670,-500.0,0.00019452,2]
[346382747,1734929446680,-500.0,0.00019452,2]
[346382748,1734929446690,-632.02,0.00019452,2]
[346382749,1734929446700,-500.0,0.00019452,2]
[346382750,1734929446710,-500.0,0.00019452,2]
[346382751,1734929446719,-500.0,0.00019452,2]
[346382752,1734929446729,-500.0,0.00019452,2]
[346382753,1734929446739,-500.0,0.00019452,2]
[346382754,1734929446748,-500.0,0.00019452,2]
[346382755,1734929446758,-500.0,0.00019452,2]
[346382756,1734929446767,-500.0,0.00019452,2]
[346382757,1734929446776,-989.01,0.00019452,2]
[346382758,1734929446785,-500.0,0.00019452,2]
[346382759,1734929446795,-496.68589236,0.00019452,2]
[346382760,1734929446804,-500.0,0.00019452,2]
[346382761,1734929446815,-691.46,0.00019452,2]
[346382762,1734929446824,-500.0,0.00019452,2]
[346382763,1734929446833,-500.0,0.00019452,2]
[346382764,1734929446843,-500.0,0.00019452,2]
[346382765,1734929446852,-500.0,0.00019452,2]
[346382766,1734929446862,-500.0,0.00019452,2]
[346382767,1734929446871,-966.9,0.00019452,2]
[346382768,1734929446880,-814.53,0.00019452,2]
[346382769,1734929446890,-500.0,0.00019452,2]
[346382770,1734929446899,-1404.17,0.00019452,2]
[346382771,1734929446908,-11528.1,0.00019452,2]
[346382772,1734929446918,-500.0,0.00019452,2]
[346382773,1734929446928,-871.9,0.00019452,2]
[346382774,1734929446938,-500.0,0.00019452,2]
[346382775,1734929446947,-500.0,0.00019452,2]
[346382776,1734929446956,-500.0,0.00019452,2]
[346382777,1734929446966,-801.99,0.00019452,2]
[346382778,1734929446978,-1039.01,0.00019452,2]
[346382779,1734929446987,-639.48,0.00019452,2]
[346382780,1734929446996,-500.0,0.00019452,2]
[346382781,1734929447006,-500.0,0.00019452,2]
[346382782,1734929447015,-500.0,0.00019452,2]
[346382783,1734929447025,-2016.72,0.00019452,2]
[346382784,1734929447034,-500.0,0.00019452,2]
[346382785,1734929447044,-538.80131202,0.00019452,2]
[346382786,1734929447055,-931.12,0.00019452,2]
[346382787,1734929447065,-500.0,0.00019452,2]
[346382788,1734929447074,-1516.68,0.00019452,2]
[346382789,1734929447084,-500.0,0.00019452,2]
[346382790,1734929447093,-908.18,0.00019452,2]
[346382791,1734929447103,-500.0,0.00019452,2]
[346382792,1734929447112,-500.0,0.00019452,2]
[346382793,1734929447121,-500.0,0.00019452,2]
[346382794,1734929447130,-838.97,0.00019452,2]
[346382795,1734929447139,-500.0,0.00019452,2]
[346382796,1734929447149,-1243.14,0.00019452,2]
[346382797,1734929447158,-500.0,0.00019452,2]
[346382798,1734929447167,-2133.73,0.00019452,2]
[346382799,1734929447176,-500.0,0.00019452,2]
[346382800,1734929447185,-1176.04,0.00019452,2]
[346382801,1734929447195,-500.0,0.00019452,2]
[346382802,1734929447204,-1233.89,0.00019452,2]
[346382803,1734929447213,-954.88,0.00019452,2]
[346382804,1734929447222,-500.0,0.00019452,2]
[346382805,1734929447232,-1481.98,0.00019452,2]
[346382806,1734929447241,-500.0,0.00019452,2]
[346382807,1734929447250,-573.89,0.00019452,2]
[346382808,1734929447260,-500.0,0.00019452,2]
[346382809,1734929447269,-3928.99,0.00019452,2]
[346382810,1734929447278,-500.0,0.00019452,2]
[346382811,1734929447287,-500.0,0.00019452,2]
[346382812,1734929447296,-500.0,0.00019452,2]
[346382813,1734929447305,-915.54,0.00019452,2]
[346382814,1734929447316,-500.0,0.00019452,2]
[346382815,1734929447325,-500.0,0.00019452,2]
[346382816,1734929447334,-500.0,0.00019452,2]
[346382817,1734929447343,-847.06,0.00019452,2]
[346382818,1734929447353,-500.0,0.00019452,2]
[346382819,1734929447362,-500.0,0.00019452,2]
[346382820,1734929447371,-500.0,0.00019452,2]
[346382821,1734929447380,-500.0,0.00019452,2]
[346382822,1734929447389,-504.35809336,0.00019452,2]
[346382823,1734929447399,-2413.1,0.00019452,2]
[346382824,1734929447408,-500.0,0.00019452,2]
[346382825,1734929447417,-761.48,0.00019452,2]
[346382826,1734929447426,-536.65,0.00019452,2]
[346382827,1734929447435,-500.0,0.00019452,2]
[346382828,1734929447445,-1033.08,0.00019452,2]
[346382829,1734929447454,-500.0,0.00019452,2]
[346382830,1734929447463,-500.0,0.00019452,2]
[346382831,1734929447473,-500.0,0.00019452,2]
[346382832,1734929447482,-500.0,0.00019452,2]
[346382833,1734929447492,-886.85,0.00019452,2]
[346382834,1734929447501,-2586.76,0.00019452,2]
[346382835,1734929447510,-500.0,0.00019452,2]
[346382836,1734929447522,-1333.19,0.00019452,2]
[346382837,1734929447531,-1540.98,0.00019452,2]
[346382838,1734929447540,-500.0,0.00019452,2]
[346382839,1734929447549,-11710.27,0.00019452,2]
[346382840,1734929447558,-703.39,0.00019452,2]
[346382841,1734929447569,-514.18239493,0.00019452,2]
[346382842,1734929447578,-500.0,0.00019452,2]
[346382843,1734929447587,-500.0,0.00019452,2]
[346382844,1734929447597,-2312.73,0.00019452,2]
[346382845,1734929447607,-684.95,0.00019452,2]
[346382846,1734929447616,-1220.19,0.00019452,2]
[346382847,1734929447625,-2642.17,0.00019452,2]
[346382848,1734929447634,-500.0,0.00019452,2]
[346382849,1734929447643,-500.0,0.00019452,2]
[346382850,1734929447653,-500.0,0.00019452,2]
[346382851,1734929447662,-1691.26,0.00019452,2]
[346382852,1734929447671,-500.0,0.00019452,2]
[346382853,1734929447680,-1254.06,0.00019452,2]
[346382854,1734929447690,-13474.63,0.00019452,2]
[346382855,1734929447699,-1278.47,0.00019452,2]
[346382856,1734929447708,-500.0,0.00019452,2]
[346382857,1734929447717,-500.0,0.00019452,2]
[346382858,1734929447726,-202.95715476,0.00019452,2]
[346382859,1734929447735,-500.0,0.00019452,2]
[346382860,1734929447744,-1944.25,0.00019452,2]
[346382861,1734929447753,-500.0,0.00019452,2]
[346382862,1734929447762,-500.0,0.00019452,2]
[346382863,1734929447770,-1695.21,0.00019452,2]
[346382864,1734929447779,-1306.02,0.00019452,2]
[346382865,1734929447789,-500.0,0.00019452,2]
[346382866,1734929447798,-500.0,0.00019452,2]
[346382867,1734929447807,-1192.12,0.00019452,2]
[346382868,1734929447818,-3936.33,0.00019452,2]
[346382869,1734929447827,-1823.19,0.00019452,2]
[346382870,1734929447836,-1202.55,0.00019452,2]
[346382871,1734929447845,-500.0,0.00019452,2]
[346382872,1734929447854,-539.7937329,0.00019452,2]
[346382873,1734929447864,-3351.22,0.00019452,2]
[346382874,1734929447873,-500.0,0.00019452,2]
[346382875,1734929447882,-1778.84,0.00019452,2]
[346382876,1734929447890,-500.0,0.00019452,2]
[346382877,1734929447899,-3079.52,0.00019452,2]
[346382878,1734929447908,-500.0,0.00019452,2]
[346382879,1734929447917,-1104.84,0.00019452,2]
[346382880,1734929447927,-507.08211271,0.00019452,2]
[346382881,1734929447935,-1128.95,0.00019452,2]
[346382882,1734929447945,-500.0,0.00019452,2]
[346382883,1734929447954,-500.0,0.00019452,2]
[346382884,1734929447963,-500.0,0.00019452,2]
[346382885,1734929447972,-1759.58,0.00019452,2]
[346382886,1734929447984,-1074.94,0.00019452,2]
[346382887,1734929447993,-1255.65,0.00019452,2]
[346382888,1734929448003,-977.24,0.00019452,2]
[346382889,1734929448012,-500.0,0.00019452,2]
[346382890,1734929448022,-2395.77,0.00019452,2]
[346382891,1734929448032,-2107.79,0.00019452,2]
[346382892,1734929448042,-500.0,0.00019452,2]
[346382893,1734929448051,-1712.79,0.00019452,2]
[346382894,1734929448062,-500.0,0.00019452,2]
[346382895,1734929448073,-500.0,0.00019452,2]
[346382896,1734929448083,-2179.08,0.00019452,2]
[346382897,1734929448092,-5815.15,0.00019452,2]
[346382898,1734929448102,-667.05,0.00019452,2]
[346382899,1734929448111,-1941.99,0.00019452,2]
[346382900,1734929448121,-4646.63,0.00019452,2]
[346382901,1734929448131,-3559.77,0.00019452,2]
[346382902,1734929448141,-500.0,0.00019452,2]
[346382903,1734929448150,-500.0,0.00019452,2]
[346382904,1734929448159,-500.0,0.00019452,2]
[346382905,1734929448169,-1514.38,0.00019452,2]
[346382906,1734929448178,-1946.88,0.00019452,2]
[346382907,1734929448188,-8984.96,0.00019452,2]
[346382908,1734929448199,-939.19,0.00019452,2]
[346382909,1734929448209,-29170.43,0.00019452,2]
[346382910,1734929448218,-500.0,0.00019452,2]
[346382911,1734929448227,-1994.41,0.00019452,2]
[346382912,1734929448237,-500.0,0.00019452,2]
[346382913,1734929448246,-500.0,0.00019452,2]
[346382914,1734929448256,-6523.15,0.00019452,2]
[346382915,1734929448266,-10867.82,0.00019452,2]
[346382916,1734929448276,-1645.14,0.00019452,2]
[346382917,1734929448285,-3511.11,0.00019452,2]
[346382918,1734929448295,-500.0,0.00019452,2]
[346382919,1734929448305,-735.02,0.00019452,2]
[346382920,1734929448316,-500.0,0.00019452,2]
[346382921,1734929448328,-500.0,0.00019452,2]
[346382922,1734929448337,-2582.95,0.00019452,2]
[346382923,1734929448346,-5195.96,0.00019452,2]
[346382924,1734929448356,-500.0,0.00019452,2]
[346382925,1734929448365,-1628.3,0.00019452,2]
[346382926,1734929448376,-747.8,0.00019452,2]
[346382927,1734929448385,-772.45,0.00019452,2]
[346382928,1734929448395,-2577.85,0.00019452,2]
[346382929,1734929448404,-3171.46,0.00019452,2]
[346382930,1734929448414,-1429.08,0.00019452,2]
[346382931,1734929448423,-695.09,0.00019452,2]
[346382932,1734929448432,-533.98,0.00019452,2]
[346382933,1734929448442,-1345.91,0.00019452,2]
[346382934,1734929448451,-500.0,0.00019452,2]
[346382935,1734929448460,-3641.64,0.00019452,2]
[346382936,1734929448470,-500.0,0.00019452,2]
[346382937,1734929448479,-3634.69,0.00019452,2]
[346382938,1734929448487,-1247.47,0.00019452,2]
[346382939,1734929448497,-2304.44,0.00019452,2]
[346382940,1734929448506,-2549.78,0.00019452,2]
[346382941,1734929448515,-2254.14,0.00019452,2]
[346382942,1734929448524,-3014.06,0.00019452,2]
[346382943,1734929448533,-500.0,0.00019452,2]
[346382944,1734929448543,-1147.35,0.00019452,2]